Cogmind - Beta 13 @@@ ROGUE MODE // 2024.07.11 @ 12:00:34 Player: ThatBishHoly Result: Destroyed self via exploding Nuclear Reactor Performance ------------- Evolutions (0) 0 Regions Visited (1) 200 Robots Destroyed (12) 60 Value Destroyed (393) 393 Prototype IDs (0) 0 Alien Tech Used (0) 0 Bonus (0) 0 TOTAL SCORE: 653 Bonus ------- None Cogmind --------- Core Integrity 0/250 Matter 448/450 Energy 250/250 System Corruption 0% Temperature Cool (0) Movement Core (350) Ox6 Location -10/Materials Parts ------- > --- POWER (1) -------- Ion Engine > --- PROPULSION (2) --- (None) > --- UTILITY (2) ------ Medium Storage Unit Large Matter Pod > --- WEAPON (2) ------- Light Assault Rifle Light Assault Rifle > --- INVENTORY (10) --- Light Treads Huge Storage Unit Sensor Array Light Assault Rifle Grenade Launcher Grenade Launcher Grenade Launcher Grenade Launcher Peak State ------------ > --- POWER ------------ Ion Engine > --- PROPULSION ------- Light Treads Light Treads > --- UTILITY ---------- Small Storage Unit Large Matter Pod > --- WEAPON ----------- Light Assault Rifle Light Assault Rifle > --- INVENTORY -------- Huge Storage Unit Light Assault Rifle Grenade Launcher Grenade Launcher Grenade Launcher [Rating: 7] Favorites ----------- Power Ion Engine Engine Ion Engine Propulsion Light Treads Treads Light Treads Utility Large Matter Pod Storage Large Matter Pod Weapon Light Assault Rifle Ballistic Gun Light Assault Rifle Build | -11 -10 ------- Run | Yrd Mat Slots Evolved . | . . Power . | . . Propulsion . | . . Utility . | . . Weapon . | . . Parts Attached 11 | 6 5 Power 2 | 1 1 Engine 2 | 1 1 Core . | . . Reactor . | . . Propulsion 2 | 2 . Treads 2 | 2 . Leg . | . . Wheel . | . . Hover . | . . Flight . | . . Utility 3 | 1 2 Device . | . . Storage 3 | 1 2 Processor . | . . Hackware . | . . Protection . | . . Artifact . | . . Weapon 4 | 2 2 Energy Gun . | . . Energy Cannon . | . . Ballistic Gun 4 | 2 2 Ballistic Cannon . | . . Launcher . | . . Special Weapon . | . . Impact Weapon . | . . Slashing Weapon . | . . Piercing Weapon . | . . Special Melee Weapon . | . . Unidentified Prototypes . | . . Parts Lost 2 | . 2 Power . | . . Propulsion 2 | . 2 Utility . | . . Weapon . | . . Highest Loss Streak 2 | . 2 To Critical Strikes . | . . Average Slot Usage (%) 85 | . 85 Engine 14 | . 14 Treads 19 | . 19 Storage 23 | . 23 Ballistic Gun 28 | . 28 Naked Turns . | . . Heaviest Build 20 | 12 20 Greatest Support 40 | 40 40 Greatest Overweight (x) 6 | . 6 Average Overweight (x) 1 | . 1 Largest Inventory Capacity 10 | 8 10 Average Capacity 9 | 6 9 Most Carried 9 | 5 9 Average Carried 5 | 1 5 Final Capacity 10 | 8 10 Final Carried 8 | 1 8 Class Distribution -------------------- 100% | Mutant Dominant Class ---------------- Mutant | -10/Materials Resources | -11 -10 ----------- Run | Yrd Mat Matter Collected 563 | 232 331 Remotely . | . . Salvage Created 503 | . 503 Parts 23 | . 23 Haulers Intercepted 2 | . 2 Recyclers Shooed . | . . Parts Field Recycled . | . . Retrieved Matter . | . . Parts Self-Destructed . | . . Prevented . | . . Kills | -11 -10 ------- Run | Yrd Mat Combat Hostiles Destroyed 10 | . 10 Guns 10 | . 10 Classes Destroyed 2 | . 2 Hauler 2 | . 2 Grunt 10 | . 10 Best Kill Streak 3 | . 3 Combat Bots Only 3 | . 3 Max Kills in Single Turn 1 | . 1 Gunslinging . | . . Exploded . | . . Melee . | . . Uniques/NPCs Destroyed . | . . Combat | -11 -10 -------- Run | Yrd Mat Hostile Shots Fired 95 | . 95 Missed 40 | . 40 Damage Taken 770 | . 770 Core 252 | . 252 Absorbed by Shields . | . . Core Remaining (%) 100 | 100 . Volleys Fired 61 | . 61 Largest 2 | . 2 Hottest 40 | . 40 Shots Fired 122 | . 122 Gun 122 | . 122 Cannon . | . . Launcher . | . . Special . | . . Kinetic 122 | . 122 Thermal . | . . Explosive . | . . Electromagnetic . | . . Robot Hit Streak 8 | . 8 Robot Miss Streak 5 | . 5 Penetration Max . | . . Secondary Targets 2 | . 2 Max Gunslinging Chain 1 | . 1 Shots Hit Robots 73 | . 73 Core Hits 35 | . 35 Critical Kills . | . . Critical Parts Destroyed 2 | . 2 Critical Strikes 2 | . 2 Destroy 2 | . 2 Melee Attacks . | . . Impact . | . . Slashing . | . . Piercing . | . . Sneak Attacks . | . . Combat Hostiles . | . . Follow-up Attacks . | . . Damage Inflicted 598 | 2 596 Guns 596 | . 596 Cannons . | . . Explosions . | . . Melee . | . . Ramming 2 | 2 . Kinetic 596 | . 596 Thermal . | . . Explosive . | . . Electromagnetic . | . . Impact . | . . Slashing . | . . Piercing . | . . Highest Corruption . | . . Average Corruption . | . . Corruption Purged . | . . Corruption Blocked . | . . Overload Shots . | . . Overflow Damage . | . . Projectiles . | . . Explosions . | . . Melee . | . . Knockbacks . | . . Impact . | . . Kinetic . | . . Secondary . | . . Self-Inflicted Damage 110 | . 110 Shots 1 | . 1 Rammed 2 | 2 . Targets Rammed 2 | 2 . Kicked . | . . Crushed . | . . Highest Temperature 46 | . 46 Average Temperature 16 | . 16 Received Heat Transfer 450 | . 450 Siege Activations . | . . Robots Corrupted . | . . Combat Hostiles . | . . Parts Fried . | . . Impact Corruptions . | . . Robots Melted . | . . Combat Hostiles . | . . Parts Melted . | . . Heat Transferred . | . . Parts Sabotaged . | . . Parts Stolen . | . . Parts Stripped . | . . Power Chain Reactions . | . . Alert | -11 -10 ------- Run | Yrd Mat Peak Influence 171 | . 171 Initial . | . . Average 28 | . 29 Maximum Alert Level . | . . Low Security (%) 100 | 100 100 Level 1 . | . . Level 2 . | . . Level 3 . | . . Level 4 . | . . Level 5 . | . . High Security . | . . Max Security . | . . Squads Dispatched 3 | . 3 Investigation 1 | . 1 Extermination . | . . Reinforcement 2 | . 2 Assault . | . . Garrison . | . . Intercept . | . . Searches Triggered . | . . Construction Impeded . | . . Haulers Reinforced . | . . Active Scanning Responses . | . . Cargo Convoy Interrupts . | . . Stealth | -11 -10 --------- Run | Yrd Mat Distress Signals 1 | . 1 Communications Jammed . | . . Distress Signals . | . . Times Spotted 16 | . 16 Peak Tracking Total 4 | . 4 Tactical Retreats . | . . Traps | -11 -10 ------- Run | Yrd Mat Traps Triggered . | . . Indirectly . | . . Trap Hack Attempts . | . . Triggered . | . . Disarmed 2 | . 2 Reprogrammed . | . . Reused . | . . Traps Extracted . | . . Installed . | . . Triggered . | . . Machines | -11 -10 ---------- Run | Yrd Mat Machines Disabled 1 | . 1 Max in Single Turn 1 | . 1 Machines Repaired . | . . Machines Dismantled . | . . Machines Sabotaged . | . . Overloaded Fab Kills . | . . Hacking | -11 -10 --------- Run | Yrd Mat Machines Accessed 4 | . 4 Terminals 4 | . 4 Fabricators . | . . Repair Stations . | . . Recycling Units . | . . Scanalyzers . | . . Garrison Access . | . . Total Hacks 12 | . 12 Successful 5 | . 5 Failed 7 | . 7 Catastrophic 1 | . 1 Database Lockouts . | . . Manual . | . . Terminals 12 | . 12 Fabricators . | . . Repair Stations . | . . Recycling Units . | . . Scanalyzers . | . . Garrison Access . | . . Terminal Hacks 5 | . 5 Alert Level 1 | . 1 Locate Traps 2 | . 2 Disarm Traps 1 | . 1 Zone Layout 1 | . 1 Fabricator Hacks . | . . Repair Station Hacks . | . . Recycling Unit Hacks . | . . Scanalyzer . | . . Garrison Access Hacks . | . . Unauthorized Hacks . | . . Terminals . | . . Fabricators . | . . Repair Stations . | . . Recycling Units . | . . Scanalyzers . | . . Garrison Access . | . . Data Cores Recovered . | . . Used . | . . Hacking Detections 2 | . 2 Full Trace Events 1 | . 1 Feedback Events . | . . Feedback Blocked . | . . Robot Schematics Acquired . | . . Robots Built . | . . Authchips . | . . Time . | . . Total Robot Build Rating . | . . Part Schematics Acquired . | . . Parts Built . | . . Authchips . | . . Time . | . . Total Part Build Rating . | . . Parts Repaired . | . . Time . | . . Parts Recycled . | . . Recycled Matter . | . . Retrieved Matter . | . . Retrieved Components . | . . Parts Scanalyzed . | . . Part Schematics Acquired . | . . Parts Damaged . | . . Bothacking | -11 -10 ------------ Run | Yrd Mat Used RIF Installer . | . . Robots Hacked . | . . Non-combat . | . . Combat . | . . Robot Hacks Applied . | . . Relay Couplers Released . | . . Fabnet Peak Effective % . | . . Robots Rewired . | . . Allies Hacked . | . . Hacks Repelled . | . . Allies | -11 -10 -------- Run | Yrd Mat Total Allies . | . . Largest Group . | . . Highest-Rated Group . | . . Highest-Rated Ally . | . . Total Orders . | . . Ally Attacks . | . . Total Damage . | . . Kills . | . . Allies Corrupted . | . . Allies Melted . | . . Intel | -11 -10 ------- Run | Yrd Mat Robot Analysis Total . | . . Derelict Logs Recovered . | . . Drone Launches . | . . Drone Recoveries . | . . Exploration | -11 -10 ------------- Run | Yrd Mat Turns Passed 1159 | 66 1093 Spaces Moved 507 | 48 459 Core 121 | 26 95 Treads 386 | 22 364 Legs . | . . Wheels . | . . Hover . | . . Flight . | . . Fastest Speed 50 | 50 160 Average Speed 189 | 100 199 Slowest Speed 350 | 160 350 Overloaded Moves . | . . Propulsion Burnouts . | . . Robots Hopped . | . . Cave-ins Triggered . | . . Exploration Rate (%) 29 | 5 54 Regions Visited 1 Branch Regions . Pre-discovered Areas . | . . Known Exits Taken . | . . Unknown Exits Taken 1 | 1 . Scrap Searched . | . . Spaces Dug . | . . Terrain Destroyed . | . . Melee . | . . Projectile . | . . AOE . | . . Terrain Rammed . | . . Walls Destroyed . | . . Machines Disabled . | . . Actions | -11 -10 --------- Run | Yrd Mat Total 608 | 66 542 Wait 1 | . 1 Move 506 | 47 459 Hop . | . . Pick Up 21 | 9 12 Fast Attach . | . . Attach 7 | 6 1 Detach . | . . Swap 4 | . 4 Drop 6 | 2 4 Fire 61 | . 61 Melee . | . . Ram . | . . Kick . | . . Crush 2 | 2 . Escape Stasis . | . . Rewire . | . . Trap . | . . Miscellaneous . | . . Route ------- -11/Scrapyard -10/Materials (discovered 2 exits: [*Mat] / [*Min]) History --------- Turn | Location | Event 10 | -11/Scrapyard | Discovered new exit (range 16) 67 | -11/Scrapyard | Entered Materials 216 | -10/Materials | Discovered new exit (range 12) 315 | -10/Materials | Build established: Mutant 613 | -10/Materials | Discovered new exit (range 11) 679 | -10/Materials | Core integrity fell below 50% 1160 | -10/Materials | Destroyed self via exploding Nuclear Reactor Last Messages --------------- 00826_ K-01 Serf collects debris. 00834_ Acquired 33 matter. 00836_ K-01 Serf collects debris. 00947_ R-06 Scavenger collects Aluminum Leg. 01122_ Connecting with Terminal... >>Traps(Locate) Found 2 traps in 1 array: 2x Alarm Trap Map updated. >>Traps(Disarm) Disarmed 2 Alarm Traps. >>Alert(Check) Current Alert Level: Low Security 01140_ O-16 Technician: "IFF HANDSHAKE FAILED. SECURING TERMINAL." 01143_ K-01 Serf cleans the Nuclear Reactor. 01144_ ALERT: Hostiles spotted, dispatching reinforcements to Terminal M003. 01146_ K-01 Serf cleans the Nuclear Reactor. 01155_ W-16 Scout sends out distress signal. 01160_ Nuclear Reactor explodes. Map ----- +----------------------------------------------------+ | ????????????????????????????????????# | | ????????????????????????????????????# | | ????????????????????????????????????# | | ???????????????????????????????##????# | | ???????????????????????????????? ??# | | ????????????????????????????????"" ?# | | ????????????????????????????????"" # | | ?????????????????????????????????" + | | ????????????###+###??????????????????# | | ????????????? #??????????????????# | | ????????????? ???????????????????# | | ????????????? ???????????????????# | | ????????????? ??????#?????#??????# | | ????????????? ??????# ??? #??????# | | ?????????????# w#??????#!??? #??????## | | ?????????????# #??????#!| #???????# | | ?????????????# #????#?#!| #???????# | | ?????????????# ###### # #???????# | | ?????????????# ? # #???????# | | ?????????????# ????+ """ #???????# | | ?????????????# # """ ######### | | ?????????????##/######### """ # # | | ?????????????# k ## #* """# | | ????????###### "## # R"# | | ???????# # T## # """# | | ???????#""" #@ "####+### # | | ???????#""" # #### # # | | ???????#""" # !!! + + / | | ?#######""" # ! !! #### # """ # | | # ##""" #] !! #??# # """ # | | # """ ## ###/#######??# # """ # | | # """ #####+## k #???????# # # | | # """ # #??????## ######### | | # # #??????# ####### | | # """ + ##### % #??????# | | # """ # #???##% #######?# T | | # """ # #????# # #?# | | # ######### # #?# ####### | | # + # !] #####+#####???## | | # ! ######### + !] # #????# | | # #???????## # ! # """"""" #????# | | #######????????# # # """"""" #????# | | ???????????????# # + """"""" #????# | | ?????????#####?# # # """"""" #????# | | ?????????# ### # # """"""" #????# | | ?????????# # # #????# | | ?????????# ##### # ! #????? | | ?????????#####???# ###########????? | | ?????????????????#######??????????????? | | ??????????????????????????????????????? | +----------------------------------------------------+ Best States ------------- Heat Dissipation 25 Energy Generation 10 Energy Capacity 250 Matter Stores 450 Matter Capacity 450 Sight Range 16 Terrain Scan Density 10 Evasion (%) 50 Recoil Reduction 2 Item Schematics ----------------- None Robot Schematics ------------------ None Fabricated ------------ Nothing Alien Tech Used ----------------- None Achievements -------------- None Challenges ------------ None Game ------ Seed LongswordProjectionCasing Manual? 0 Play Time 00:10:17 Cumulative 52.3 hours Start 2024.07.11 @ 11:21:00 End 2024.07.11 @ 12:00:34 Sessions 1 Manual Loads 0 Difficulty Rogue Special Mode None Game No. 143 Rogue 143 Adventurer 0 Explorer 0 Win Type - Total 0 Types 0/0/0/0/0/0/0/0/0 Lore% 22 Gallery% 40 Achievement% 26 Wizard Run 0 Options --------- Layout 0 ASCII 0 Keyboard 0 Movement Arrows Keybinds 0 Fullscreen 1 Font 12/Smallcaps Map View 38x28 Zoom Use 97% Tactical HUD 1 Map Filters NONE Filters NONE Steam SD RUN: f873b42c-e8e3-44f9-ab76-13e5e7055421